bitfinex/quotes_BTCUSD_20250814
["timestamp","ask_amount","ask_price","bid_price","bid_amount"]
[1755142779988,0.08772325,123300.0,123290.0,0.22315797]
[1755142780423,0.08772325,123300.0,123290.0,0.15054228]
[1755142780635,0.08472325,123300.0,123290.0,0.14954228]
[1755142781031,0.08472325,123300.0,123290.0,0.15054228]
[1755142781418,0.08272325,123300.0,123290.0,0.14954228]
[1755142781817,0.08472325,123300.0,123290.0,0.15054228]
[1755142783264,0.08472325,123300.0,123290.0,0.22315797]
[1755142784090,0.08776325,123300.0,123290.0,0.22315797]
[1755142784297,0.08472325,123300.0,123290.0,0.22315797]
[1755142784721,0.002,123300.0,123290.0,0.10691449]
[1755142785025,0.002,123300.0,123290.0,0.53287449]
[1755142785589,0.002,123300.0,123290.0,0.51843797]
[1755142786482,0.002,123300.0,123290.0,0.28679797]
[1755142786685,0.002,123300.0,123290.0,0.41739797]
[1755142787274,0.002,123300.0,123290.0,0.41739271]
[1755142787512,0.01700201,123330.0,123290.0,0.34897702]
[1755142787675,0.08272325,123320.0,123300.0,0.00356812]
[1755142787888,0.08272325,123320.0,123310.0,0.20321361]
[1755142788098,0.08468325,123320.0,123310.0,0.22190533]
[1755142789626,0.08772325,123320.0,123310.0,0.22190533]
[1755142790392,0.08772325,123320.0,123310.0,0.25542315]
[1755142790592,0.08872325,123320.0,123310.0,0.25642315]
[1755142790774,0.09172325,123320.0,123310.0,0.25642315]
[1755142791491,0.09172325,123320.0,123310.0,0.18384954]
[1755142792213,0.09172325,123320.0,123310.0,0.16872594]
[1755142794115,0.08472325,123320.0,123310.0,0.16872594]
[1755142794936,0.08472325,123320.0,123310.0,0.26976594]
[1755142795119,0.08472325,123320.0,123310.0,0.56728594]
[1755142795714,0.08472325,123320.0,123310.0,0.46624594]
[1755142795925,0.08472325,123320.0,123310.0,0.33560594]
[1755142795926,0.07972325,123320.0,123310.0,0.33560594]
[1755142796134,0.07972325,123320.0,123310.0,0.46604594]
[1755142797208,0.004,123320.0,123310.0,0.17068594]
[1755142797416,0.004,123320.0,123310.0,0.1877485]
[1755142797600,0.004,123320.0,123310.0,0.26032211]
[1755142797950,0.004,123320.0,123310.0,0.24629955]
[1755142798347,0.004,123320.0,123310.0,0.24325955]
[1755142802433,0.004,123320.0,123310.0,0.11281955]
[1755142802634,0.004,123320.0,123310.0,0.24309955]
[1755142803548,0.004,123320.0,123310.0,0.24613955]
[1755142804150,0.004,123320.0,123310.0,0.17356594]
[1755142805070,0.004,123320.0,123310.0,0.56984594]
[1755142805282,0.004,123320.0,123310.0,0.67178453]
[1755142806523,0.004,123320.0,123310.0,0.57078453]
[1755142806752,0.004,123320.0,123310.0,0.44050453]
[1755142806960,0.004,123320.0,123310.0,0.57082453]
[1755142807612,0.004,123320.0,123310.0,0.46986453]
[1755142808791,0.004,123320.0,123310.0,0.14522453]
[1755142808992,0.0036,123320.0,123310.0,0.27554453]
[1755142809609,0.0036,123320.0,123310.0,0.30002274]
[1755142809822,0.00132713,123320.0,123310.0,0.16970274]
[1755142810037,0.00092713,123320.0,123310.0,0.19808415]
[1755142810259,0.00023508,123320.0,123310.0,0.19808415]
[1755142810478,0.00301,123350.0,123310.0,0.19708415]
[1755142810711,0.00301,123350.0,123330.0,0.06944825]
[1755142810928,0.00301,123350.0,123340.0,0.13235]
[1755142811167,0.06985771,123360.0,123340.0,0.13235]
[1755142811366,0.06985771,123360.0,123340.0,0.13539]
[1755142811569,0.001,123350.0,123340.0,0.13539]
[1755142811779,0.001,123350.0,123340.0,0.13235]
[1755142813022,0.001,123350.0,123340.0,0.13539]
[1755142813222,0.00301,123370.0,123340.0,0.13539]
[1755142813435,0.08573325,123370.0,123360.0,0.05802699]
[1755142813666,0.08786325,123370.0,123360.0,0.13036]
[1755142813873,0.08786325,123370.0,123350.0,0.10148557]
[1755142814084,0.08485325,123370.0,123360.0,0.13036]
[1755142814353,0.08585325,123370.0,123360.0,0.13036]
[1755142814549,0.08886325,123370.0,123360.0,0.13036]
[1755142814769,0.08986325,123370.0,123360.0,0.13032]
[1755142815000,0.08986325,123370.0,123360.0,0.39624]
[1755142815202,0.09186325,123370.0,123360.0,0.42556]
[1755142815416,0.09186325,123370.0,123360.0,0.32456]
[1755142815651,0.00914,123370.0,123360.0,0.13032]
[1755142815864,0.00914,123370.0,123360.0,0.13036]
[1755142816285,0.00714,123370.0,123360.0,0.13036]
[1755142816697,0.00714,123370.0,123360.0,0.13235]
[1755142817974,0.00814,123370.0,123360.0,0.13235]
[1755142819227,0.00814,123370.0,123360.0,0.13036]
[1755142819641,0.00814,123370.0,123360.0,0.20283123]
[1755142819851,0.09086325,123370.0,123360.0,0.07251123]
[1755142820263,0.68609507,123370.0,123360.0,0.07251123]
[1755142820475,0.68609507,123370.0,123360.0,0.18853362]
[1755142820678,0.20432629,123370.0,123360.0,0.18853362]
[1755142820890,0.20432629,123370.0,123360.0,0.05801362]
[1755142821099,0.2385316,123370.0,123360.0,0.18857362]
[1755142821311,0.20232629,123370.0,123360.0,0.18857362]
[1755142821518,0.20632629,123370.0,123360.0,0.18957362]
[1755142821846,0.20532629,123370.0,123360.0,0.18957362]
[1755142822256,0.69009507,123370.0,123360.0,0.05901362]
[1755142822464,0.70620088,123370.0,123360.0,0.05901362]
[1755142822691,0.69009507,123370.0,123360.0,0.05901362]
[1755142822947,0.69009507,123370.0,123360.0,0.18953362]
[1755142825128,0.69009507,123370.0,123360.0,0.35425362]
[1755142825340,0.69009507,123370.0,123360.0,0.48477362]
[1755142826407,0.75910922,123370.0,123360.0,0.48477362]
[1755142826605,0.75910922,123370.0,123360.0,0.38377362]
[1755142827565,0.21049273,123370.0,123360.0,0.25325362]
[1755142827786,0.623252,123370.0,123360.0,0.38377362]
[1755142829105,0.623252,123370.0,123350.0,0.05805439]
[1755142829325,0.08573325,123360.0,123350.0,0.05805439]
[1755142829531,0.10295822,123360.0,123350.0,0.05805439]
[1755142830088,0.10295822,123360.0,123320.0,0.00304]
[1755142830285,0.16458392,123360.0,123320.0,0.00304]
[1755142830488,0.00301,123350.0,123330.0,0.13052]
[1755142830675,0.08272325,123340.0,123330.0,0.13052]
[1755142830946,0.08786325,123340.0,123330.0,0.13251]
[1755142832028,0.08786325,123340.0,123330.0,0.13152]
[1755142833242,0.08886325,123340.0,123320.0,0.02452479]
[1755142833449,0.08886325,123340.0,123330.0,0.1304]
[1755142833650,0.09086325,123340.0,123330.0,0.1304]
[1755142833886,0.09086325,123340.0,123330.0,0.13044]
[1755142834309,0.08886325,123340.0,123330.0,0.13044]
[1755142835158,0.08986325,123340.0,123330.0,0.52668]
[1755142835779,0.08986325,123340.0,123330.0,0.42568]
[1755142836454,0.08886325,123340.0,123330.0,0.42568]
[1755142836660,0.09086325,123340.0,123330.0,0.42568]
[1755142837110,0.09086325,123340.0,123330.0,0.3246]
[1755142837543,0.09994958,123340.0,123310.0,0.03655782]
[1755142837782,0.003,123330.0,123310.0,0.03351782]
[1755142838005,0.08272325,123320.0,123310.0,0.03351782]
[1755142838263,0.08272325,123320.0,123310.0,0.20520255]
[1755142838678,0.08272325,123320.0,123310.0,0.07476255]
[1755142838921,0.08272325,123320.0,123310.0,0.23880779]
[1755142839126,0.02292451,123320.0,123310.0,0.16517524]
[1755142839570,0.02292451,123320.0,123310.0,0.26785268]
[1755142839774,0.02292451,123320.0,123310.0,0.26885268]
[1755142839930,0.02292451,123320.0,123310.0,0.16717524]
[1755142840354,0.02292451,123320.0,123310.0,0.16617524]
[1755142840626,0.02292451,123320.0,123310.0,0.16717524]
[1755142841240,0.02292451,123320.0,123310.0,0.18984531]
[1755142842325,0.02292451,123320.0,123310.0,0.19277531]
[1755142842747,0.02292451,123320.0,123310.0,0.19269531]
[1755142844391,0.02392451,123320.0,123310.0,0.19269531]
[1755142845027,0.02392451,123320.0,123310.0,0.58897531]
[1755142846627,0.02392451,123320.0,123310.0,0.69065275]
[1755142848509,0.02392451,123320.0,123310.0,0.48572275]
[1755142849337,0.00742671,123320.0,123310.0,0.38404531]
[1755142849548,0.00742671,123320.0,123310.0,0.18976531]
[1755142854944,0.00742671,123320.0,123310.0,0.39176531]
[1755142855160,0.00742671,123320.0,123310.0,0.58604531]
[1755142856697,0.00742671,123320.0,123310.0,0.56137524]
[1755142857400,0.00233818,123320.0,123310.0,0.56137524]
[1755142857583,0.00233818,123320.0,123310.0,0.35937524]
[1755142859045,0.00233818,123320.0,123310.0,0.35869524]
[1755142860985,0.00233818,123320.0,123310.0,0.16441524]
[1755142861591,0.00233818,123320.0,123310.0,0.30972396]
[1755142862198,0.00233818,123320.0,123310.0,0.18008396]
[1755142862324,0.001,123320.0,123310.0,0.18301396]
[1755142862526,0.001,123320.0,123310.0,0.31245396]
[1755142864271,0.001,123320.0,123310.0,0.3350148]
[1755142864834,0.001,123320.0,123310.0,0.3320848]
[1755142865048,0.001,123320.0,123310.0,0.7283648]
[1755142865181,0.0012648,123330.0,123310.0,0.7283648]
[1755142865381,0.06684771,123350.0,123310.0,0.47536396]
[1755142865588,0.08272325,123340.0,123330.0,0.10192869]
[1755142865835,0.08272325,123340.0,123330.0,0.23638869]
[1755142866356,0.08272325,123340.0,123330.0,0.13446]
[1755142867256,0.08572325,123340.0,123330.0,0.13546]
[1755142867395,0.08572325,123340.0,123330.0,0.00606]
[1755142867595,0.08572325,123340.0,123330.0,0.13542]
[1755142867837,0.08472325,123340.0,123330.0,0.13442]
[1755142868041,0.08672325,123340.0,123330.0,0.13442]
[1755142868816,0.08672325,123340.0,123330.0,0.13149]
[1755142869227,0.08472325,123340.0,123330.0,0.13121968]
[1755142869427,0.08572325,123340.0,123330.0,0.13121968]
[1755142870314,0.08572325,123340.0,123330.0,0.13437968]
[1755142870531,0.003,123340.0,123330.0,0.13437968]
[1755142870938,0.003,123340.0,123330.0,0.00501968]
[1755142871195,0.003,123340.0,123330.0,0.13437968]
[1755142871972,0.003,123340.0,123330.0,0.2796884]
[1755142873248,0.06684771,123370.0,123330.0,0.2796884]
[1755142873426,0.14957096,123370.0,123350.0,0.1018135]
[1755142873645,0.15256096,123370.0,123360.0,0.12936]
[1755142873856,0.15461096,123370.0,123360.0,0.12936]
[1755142874265,0.15461096,123370.0,123360.0,0.15192084]
[1755142875101,0.15661096,123370.0,123360.0,0.54816084]
[1755142877100,0.15861096,123370.0,123360.0,0.54816084]
[1755142877960,0.15861096,123370.0,123360.0,0.15192084]
[1755142878153,0.15861096,123370.0,123360.0,0.22455925]
[1755142878585,0.15861096,123370.0,123360.0,0.15192084]
[1755142879189,0.09176325,123370.0,123360.0,0.25356796]
[1755142884268,0.09176325,123370.0,123360.0,0.12420796]
[1755142884474,0.57353203,123370.0,123360.0,0.17417574]
[1755142884670,0.57353203,123370.0,123360.0,0.20152862]
[1755142885229,0.57353203,123370.0,123360.0,0.49676862]
[1755142885387,0.09176325,123370.0,123360.0,0.36776862]
[1755142885557,0.21596416,123370.0,123360.0,0.49680862]
[1755142885973,0.64037974,123370.0,123360.0,0.26676862]
[1755142886172,0.67130974,123370.0,123360.0,0.39584862]
[1755142888401,0.67130974,123370.0,123360.0,0.20160862]
[1755142890446,0.67130974,123370.0,123360.0,0.07252862]
[1755142890653,0.67130974,123370.0,123360.0,0.20152862]
[1755142891033,0.73844071,123370.0,123360.0,0.20152862]
[1755142891837,0.60446203,123370.0,123360.0,0.20152862]
[1755142892455,0.12269325,123370.0,123360.0,0.20152862]
[1755142893082,0.60446203,123370.0,123360.0,0.20152862]
[1755142893288,0.60446203,123370.0,123360.0,0.07252862]
[1755142893494,0.60446203,123370.0,123360.0,0.20144862]
[1755142893702,0.66490823,123370.0,123360.0,0.20144862]
[1755142893911,0.66490823,123370.0,123360.0,0.07252862]
[1755142894142,0.66490823,123370.0,123360.0,0.20140862]
[1755142895022,0.66490823,123370.0,123360.0,0.49664862]
[1755142895231,0.66090823,123370.0,123360.0,0.49664862]
[1755142895664,0.66890823,123370.0,123360.0,0.49764862]
[1755142897597,0.66890823,123370.0,123360.0,0.39664862]
[1755142899798,0.66890823,123370.0,123360.0,0.20240862]
[1755142901330,0.18713945,123370.0,123360.0,0.07352862]
[1755142901549,0.66890823,123370.0,123360.0,0.20240862]
[1755142902022,0.66890823,123370.0,123360.0,0.07352862]
[1755142902230,0.63797823,123370.0,123360.0,0.20236862]
[1755142902965,0.63797823,123370.0,123360.0,0.07352862]
[1755142903181,0.15620945,123370.0,123360.0,0.20232862]
[1755142903393,0.63797823,123370.0,123360.0,0.20232862]
[1755142904051,0.90427823,123370.0,123360.0,0.20236862]
[1755142904264,0.42250945,123370.0,123360.0,0.12984]
[1755142904487,0.90427823,123370.0,123360.0,0.12984]
[1755142904914,0.42250945,123370.0,123360.0,0.12984]
[1755142905141,2.37337823,123370.0,123360.0,0.29628]
[1755142905410,2.37337823,123370.0,123360.0,0.42508]
[1755142907031,1.89160945,123370.0,123360.0,0.42508]
[1755142907241,2.37337823,123370.0,123360.0,0.29628]
[1755142907456,1.89160945,123370.0,123360.0,0.32328]
[1755142907659,2.37337823,123370.0,123360.0,0.32328]
[1755142908033,0.90427823,123370.0,123360.0,0.32328]
[1755142908474,0.42250945,123370.0,123360.0,0.32328]
[1755142908687,0.90427823,123370.0,123340.0,0.0031]
[1755142908868,0.08272325,123350.0,123340.0,0.0031]
[1755142909097,0.08272325,123350.0,123340.0,0.13415]
[1755142909710,0.09099558,123350.0,123280.0,0.48817245]
[1755142909917,0.09099558,123350.0,123340.0,0.001]
[1755142910525,0.09199558,123350.0,123340.0,0.001]
[1755142910731,0.09199558,123350.0,123340.0,0.12992]
[1755142911155,0.09516558,123350.0,123340.0,0.12992]
[1755142911374,0.09516558,123350.0,123340.0,0.12892]
[1755142911842,0.09816558,123350.0,123340.0,0.12992]
[1755142912515,0.09499558,123350.0,123340.0,0.12992]
[1755142915169,0.09499558,123350.0,123340.0,0.4252]
[1755142918593,0.08672325,123350.0,123340.0,0.12992]
[1755142920233,0.09188325,123350.0,123340.0,0.10288573]
[1755142920487,0.57365203,123350.0,123340.0,0.23168573]
[1755142920669,0.57365203,123350.0,123340.0,0.10288573]
[1755142920883,0.63101723,123350.0,123340.0,0.23180573]
[1755142921526,0.69786494,123350.0,123340.0,0.23192573]
[1755142921673,0.69786494,123350.0,123340.0,0.23200573]
[1755142921879,0.69786494,123350.0,123340.0,0.10288573]
[1755142922100,2.16696494,123350.0,123340.0,0.23200573]
[1755142922300,2.16696494,123350.0,123340.0,0.13012]
[1755142923145,1.68519616,123350.0,123340.0,0.13012]
[1755142923347,2.10011723,123350.0,123340.0,0.13012]
[1755142925109,1.61834845,123350.0,123340.0,0.4254]
[1755142925466,2.10011723,123350.0,123340.0,0.4254]
[1755142926929,2.10011723,123350.0,123340.0,0.29628]
[1755142927144,2.10011723,123350.0,123340.0,0.42536]
[1755142927936,2.09911723,123350.0,123340.0,0.42536]
[1755142928262,2.09611723,123350.0,123340.0,0.42436]
[1755142928468,2.09911723,123350.0,123340.0,0.42436]
[1755142928685,2.10311723,123350.0,123340.0,0.42536]
[1755142928864,2.10311723,123350.0,123340.0,0.32436]
[1755142930063,2.10311723,123350.0,123340.0,0.001]
[1755142930262,2.36941723,123350.0,123340.0,0.12984]
[1755142935109,2.36941723,123350.0,123340.0,0.4252]
[1755142935949,1.88764845,123350.0,123340.0,0.4252]
[1755142936184,2.36941723,123350.0,123340.0,0.4252]
[1755142936391,1.88764845,123350.0,123340.0,0.4252]
[1755142936602,2.36941723,123350.0,123340.0,0.4252]
[1755142936815,1.88764845,123350.0,123340.0,0.4252]
[1755142937030,2.36941723,123350.0,123340.0,0.4252]
[1755142938996,2.36941723,123350.0,123340.0,0.4248]
[1755142939205,2.36941723,123350.0,123340.0,0.32372]
[1755142941330,2.3845378,123350.0,123340.0,0.32372]
[1755142941921,1.90276902,123350.0,123340.0,0.32372]
[1755142942103,2.3845378,123350.0,123340.0,0.32372]
[1755142943016,2.36941723,123350.0,123340.0,0.32372]
[1755142943228,1.88764845,123350.0,123340.0,0.32372]
[1755142943438,2.36941723,123350.0,123340.0,0.32372]
[1755142943645,1.88764845,123350.0,123340.0,0.32372]
[1755142943882,2.36941723,123350.0,123340.0,0.32372]
[1755142944434,2.36941723,123350.0,123340.0,0.1294]
[1755142945125,2.36941723,123350.0,123340.0,0.42476]
[1755142948157,1.88764845,123350.0,123340.0,0.42476]
[1755142948384,2.36941723,123350.0,123340.0,0.42476]
[1755142950123,2.38451517,123350.0,123340.0,0.42476]
[1755142950739,2.38451517,123350.0,123340.0,0.19532]
[1755142950974,2.38451517,123350.0,123340.0,0.12884]
[1755142955061,2.38451517,123350.0,123340.0,0.4242]
[1755142955267,2.38451437,123350.0,123340.0,0.4242]
[1755142955686,1.90274559,123350.0,123340.0,0.4242]
[1755142955898,2.38451437,123350.0,123340.0,0.4242]
[1755142956112,2.38451437,123350.0,123340.0,0.42392]
[1755142957169,0.91541437,123350.0,123340.0,0.42392]
[1755142957922,0.91541437,123350.0,123340.0,0.19532]
[1755142958136,2.38451437,123350.0,123340.0,0.3228]
[1755142958775,1.90274559,123350.0,123340.0,0.3228]
[1755142959195,2.38451437,123350.0,123340.0,0.3228]
[1755142960035,1.90274559,123350.0,123340.0,0.3228]
[1755142960242,2.38451437,123350.0,123340.0,0.3228]
[1755142960582,2.38451437,123350.0,123340.0,0.001]
[1755142960786,2.38451437,123350.0,123340.0,0.12848]
[1755142961248,1.90274559,123350.0,123340.0,0.12848]
[1755142961462,2.38451437,123350.0,123340.0,0.12848]
[1755142961662,2.38451437,123350.0,123340.0,0.12844]
[1755142962121,2.38451437,123350.0,123340.0,0.12836]
[1755142964836,2.38451437,123350.0,123340.0,0.12824]
[1755142965041,2.38451437,123350.0,123340.0,0.4236]
[1755142965733,2.38451437,123350.0,123340.0,0.29636]
[1755142966010,2.38451437,123350.0,123340.0,0.42356]
[1755142967800,2.38451437,123350.0,123340.0,0.32252]
[1755142968017,1.90274559,123350.0,123340.0,0.32252]
[1755142968229,2.38451437,123350.0,123340.0,0.32252]
[1755142970480,2.38451437,123350.0,123340.0,0.001]
[1755142970687,2.38451437,123350.0,123340.0,0.12804]
[1755142972580,2.38051437,123350.0,123340.0,0.12704]
[1755142972974,2.37751437,123350.0,123340.0,0.12704]
[1755142973170,2.38051437,123350.0,123340.0,0.12704]
[1755142973484,2.3855629,123350.0,123340.0,0.12804]
[1755142975115,2.3855629,123350.0,123340.0,0.4232]
[1755142977938,2.3855629,123350.0,123270.0,0.02211003]
[1755142978154,0.08272325,123320.0,123270.0,0.02211003]
[1755142978565,0.08272325,123320.0,123260.0,0.08302771]
[1755142979011,0.08272325,123320.0,123270.0,0.12668]
[1755142979373,0.08272325,123320.0,123270.0,0.1608866]
[1755142979811,0.08272325,123320.0,123270.0,0.1588866]
[1755142980018,0.13949645,123320.0,123270.0,0.1588866]
[1755142980379,0.13949645,123320.0,123270.0,0.1638866]
[1755142980790,0.68107736,123320.0,123270.0,0.1638866]
[1755142981280,0.68207736,123320.0,123270.0,0.1638866]
[1755142981782,0.08272325,123320.0,123280.0,0.1343403]
[1755142981926,0.08272325,123320.0,123290.0,0.12664]
[1755142982274,0.08372325,123320.0,123300.0,0.1343403]
[1755142982690,0.08272325,123320.0,123300.0,0.1343403]
[1755142983093,0.08372325,123320.0,123300.0,0.1343403]
[1755142983243,0.08372325,123320.0,123270.0,0.10966268]
[1755142983443,0.08372325,123320.0,123280.0,0.1343403]
[1755142984253,0.08272325,123320.0,123280.0,0.1343403]
[1755142984682,0.08372325,123320.0,123280.0,0.0117003]
[1755142984927,0.08372325,123320.0,123290.0,0.12664]
[1755142985114,0.08272325,123320.0,123310.0,0.29536]
[1755142985376,0.08372325,123320.0,123310.0,0.32096]
[1755142986595,0.08272325,123320.0,123310.0,0.33612874]
[1755142987420,0.08272325,123320.0,123310.0,0.14180874]
[1755142987604,0.08572325,123320.0,123310.0,0.14180874]
[1755142988010,0.08672325,123320.0,123310.0,0.14180874]
[1755142988361,0.08572325,123320.0,123310.0,0.14180874]
[1755142988787,0.08872325,123320.0,123310.0,0.14280874]
[1755142992235,0.09401325,123320.0,123310.0,0.01616874]
[1755142992441,0.63940979,123320.0,123310.0,0.01616874]
[1755142992647,0.63940979,123320.0,123310.0,0.14280874]
[1755142992846,0.63940979,123320.0,123310.0,0.01616874]
[1755142993065,0.63940979,123320.0,123310.0,0.14280874]
[1755142993492,0.15821848,123320.0,123310.0,0.14280874]
[1755142994634,0.63940979,123320.0,123310.0,0.01616874]
[1755142994945,0.63940979,123320.0,123310.0,0.14280874]
[1755142995154,0.63940979,123320.0,123310.0,0.43816874]
[1755142995552,0.15521848,123320.0,123310.0,0.31052874]
[1755142995728,0.57220456,123320.0,123310.0,0.43716874]
[1755142995935,0.57620456,123320.0,123310.0,0.33712874]
[1755142996297,0.57620456,123320.0,123310.0,0.32196]
[1755142996742,0.57320456,123320.0,123310.0,0.32196]
[1755142996946,0.64020979,123320.0,123310.0,0.32196]
[1755142998225,0.64020979,123320.0,123310.0,0.12764]
[1755142998448,1.1214011,123320.0,123310.0,0.12764]
[1755142998685,0.64020979,123320.0,123310.0,0.001]
[1755142998895,1.1214011,123320.0,123310.0,0.12764]
[1755142999561,1.1214011,123320.0,123310.0,0.001]
[1755142999762,0.64020979,123320.0,123310.0,0.12764]
[1755143000207,2.10930979,123320.0,123310.0,0.12764]
[1755143000633,1.62811848,123320.0,123310.0,0.12764]
[1755143000831,2.10930979,123320.0,123310.0,0.12764]
[1755143001073,1.62811848,123320.0,123310.0,0.12764]
[1755143001283,2.10930979,123320.0,123310.0,0.12764]
[1755143001917,1.62811848,123320.0,123310.0,0.001]
[1755143002126,0.15901848,123320.0,123310.0,0.001]
[1755143002330,0.09291325,123320.0,123310.0,0.001]
[1755143002548,0.09291325,123320.0,123310.0,0.12764]
[1755143002946,0.09501325,123320.0,123310.0,0.001]
[1755143003145,0.09501325,123320.0,123310.0,0.12764]
[1755143003978,0.09291325,123320.0,123310.0,0.12764]
[1755143004194,0.10220457,123320.0,123310.0,0.12764]
[1755143005040,0.10220457,123320.0,123310.0,0.423]
[1755143007705,0.10430457,123320.0,123310.0,0.423]
[1755143008066,0.10220457,123320.0,123310.0,0.423]
[1755143009286,0.09291325,123320.0,123310.0,0.423]
[1755143009504,0.08972325,123320.0,123310.0,0.12764]
[1755143009700,0.08972325,123320.0,123310.0,0.13062636]
[1755143011569,0.08972325,123320.0,123310.0,0.00398636]
[1755143011779,0.08972325,123320.0,123310.0,0.13062636]
[1755143012417,0.08972325,123320.0,123310.0,0.00398636]
[1755143012584,0.08972325,123320.0,123310.0,0.13062636]
[1755143012783,0.08972325,123320.0,123310.0,0.13599734]
[1755143013468,0.007,123320.0,123310.0,0.00935734]
[1755143013645,0.003,123320.0,123310.0,0.12962636]
[1755143014153,0.003,123320.0,123270.0,0.50695236]
[1755143014378,0.003,123320.0,123280.0,0.08272325]
[1755143014754,0.004,123320.0,123280.0,0.08272325]
[1755143014967,0.004,123320.0,123290.0,0.10104]
[1755143015167,0.003,123320.0,123310.0,0.29536]
[1755143016977,0.004,123320.0,123310.0,0.29536]
[1755143017450,0.003,123320.0,123310.0,0.29536]
[1755143017827,0.004,123320.0,123310.0,0.29536]
[1755143018452,0.004,123320.0,123310.0,0.19432]
[1755143020459,0.004,123320.0,123300.0,0.12664]
[1755143021220,0.003,123320.0,123300.0,0.12664]
[1755143021543,0.004,123320.0,123300.0,0.12764]
[1755143022174,0.001,123320.0,123300.0,0.12764]
[1755143022523,0.001,123320.0,123300.0,0.12864]
[1755143023309,0.001,123320.0,123300.0,0.002]
[1755143023310,0.08687325,123320.0,123300.0,0.002]
[1755143023544,0.00315,123310.0,123300.0,0.002]
[1755143023707,0.00515,123310.0,123300.0,0.1286]
[1755143023908,0.00515,123310.0,123300.0,0.002]
[1755143024115,0.00315,123310.0,123300.0,0.1286]
[1755143024501,0.00315,123310.0,123300.0,0.1276]
[1755143024688,0.00415,123310.0,123300.0,0.1286]
[1755143025106,0.00415,123310.0,123300.0,0.525]
[1755143025308,0.00615,123310.0,123300.0,0.525]
[1755143025720,0.00615,123310.0,123300.0,0.524]
[1755143026453,0.00615,123310.0,123300.0,0.525]
[1755143026654,0.00415,123310.0,123300.0,0.525]
[1755143027018,0.00415,123310.0,123300.0,0.32292]
[1755143027233,0.001,123310.0,123300.0,0.32292]
[1755143027438,0.00415,123310.0,123300.0,0.32292]
[1755143029007,0.00415,123310.0,123300.0,0.1286]
[1755143030322,0.001,123310.0,123300.0,0.1286]
[1755143031661,0.00415,123310.0,123300.0,0.1286]
[1755143032692,0.00615,123310.0,123300.0,0.1276]
[1755143033110,0.00515,123310.0,123300.0,0.1276]
[1755143033324,0.00515,123310.0,123300.0,0.1266]
[1755143033734,0.00315,123310.0,123300.0,0.1266]
[1755143034242,0.00615,123310.0,123300.0,0.1286]
[1755143034569,0.00515,123310.0,123300.0,0.1266]
[1755143034942,0.00615,123310.0,123300.0,0.1276]
[1755143035070,0.00615,123310.0,123300.0,0.42296]
[1755143036102,0.00615,123310.0,123300.0,0.19432]
[1755143037003,0.00615,123310.0,123270.0,0.4470843]
[1755143037156,0.00615,123310.0,123270.0,0.52980755]
[1755143037351,0.00615,123310.0,123280.0,0.12656]
[1755143037576,0.00415,123310.0,123280.0,0.15143527]
[1755143037960,0.00315,123310.0,123280.0,0.15143527]
[1755143038140,0.00415,123310.0,123280.0,0.15143527]
[1755143038991,0.00415,123310.0,123280.0,0.15343527]
[1755143039665,0.00315,123310.0,123280.0,0.15343527]
[1755143039983,0.00415,123310.0,123280.0,0.15443527]
[1755143040369,0.00315,123300.0,123280.0,0.15443527]
[1755143041258,0.00315,123300.0,123280.0,0.15343527]
[1755143041634,0.00415,123300.0,123280.0,0.02587527]
[1755143041793,0.00415,123300.0,123290.0,0.12656]
[1755143042003,0.00615,123300.0,123280.0,0.02587527]
[1755143042217,0.00615,123300.0,123290.0,0.12652]
[1755143043122,0.00615,123300.0,123280.0,0.02587527]
[1755143043328,0.00615,123300.0,123290.0,0.12652]
[1755143045078,0.00615,123300.0,123290.0,0.52292]
[1755143045296,0.00615,123300.0,123290.0,0.42188]
[1755143046179,0.00415,123300.0,123290.0,0.42188]
[1755143047015,0.00315,123300.0,123290.0,0.42188]
[1755143047222,0.00415,123300.0,123290.0,0.32184]
[1755143047370,0.00415,123300.0,123290.0,0.32284]
[1755143047766,0.001,123300.0,123290.0,0.12852]
[1755143048680,0.001,123300.0,123290.0,0.27413651]
[1755143050181,0.001,123300.0,123290.0,0.12852]
[1755143054900,0.001,123300.0,123290.0,0.22956]
[1755143055105,0.001,123300.0,123290.0,0.52492]
[1755143058129,0.0042,123300.0,123290.0,0.12852]
[1755143058329,0.00623,123300.0,123290.0,0.12852]
[1755143058623,0.00623,123300.0,123290.0,0.002]
[1755143058831,0.00623,123300.0,123290.0,0.12848]
[1755143060769,0.00500647,123300.0,123290.0,0.12848]
[1755143065104,0.00500647,123300.0,123290.0,0.42384]
[1755143065753,0.00500647,123300.0,123290.0,0.19632]
[1755143065933,0.00500647,123300.0,123290.0,0.32276]
[1755143066080,0.00297647,123300.0,123290.0,0.32276]
[1755143068459,0.0032,123310.0,123290.0,0.002]
[1755143068684,0.08592325,123320.0,123300.0,0.12644]
[1755143068867,0.08592325,123320.0,123310.0,0.12644]
[1755143069050,0.08795325,123320.0,123310.0,0.12644]
[1755143069579,0.00523,123320.0,123290.0,0.002]
[1755143069943,0.00523,123320.0,123300.0,0.12644]
[1755143070144,0.00623,123320.0,123310.0,0.12644]
[1755143070353,0.001,123320.0,123310.0,0.12644]
[1755143070891,0.0042,123320.0,123310.0,0.12644]
[1755143071037,0.0032,123320.0,123310.0,0.12644]
[1755143071430,0.0042,123320.0,123310.0,0.12644]
[1755143071629,0.0042,123320.0,123310.0,0.139084]
[1755143071856,0.001,123320.0,123310.0,0.1264]
[1755143072064,0.001,123320.0,123310.0,0.024282]
[1755143072267,0.001,123320.0,123310.0,0.152322]
[1755143072519,0.002,123320.0,123310.0,0.31667071]
[1755143072986,0.002,123320.0,123310.0,0.38166176]
[1755143073229,0.002,123320.0,123310.0,0.38206176]
[1755143073450,0.001,123320.0,123310.0,0.38206176]
[1755143073654,0.01,123340.0,123310.0,0.38106176]
[1755143073852,0.01,123340.0,123310.0,0.38206176]
[1755143074058,0.01,123340.0,123310.0,0.35877976]
[1755143074281,0.01,123340.0,123320.0,0.024279]
[1755143074495,0.01,123340.0,123330.0,0.12856]
[1755143075043,0.01,123340.0,123330.0,0.52492]
[1755143075828,0.012,123340.0,123330.0,0.52492]
[1755143076733,0.00328814,123340.0,123330.0,0.43901732]
[1755143077134,0.00328814,123340.0,123330.0,0.14369732]
[1755143077819,0.00128814,123340.0,123330.0,0.14369732]
[1755143078118,0.00327814,123340.0,123330.0,0.14369732]